bitfinex-derivatives/quotes_BNBF0:USTF0_20251002
["timestamp","ask_amount","ask_price","bid_price","bid_amount"]
[1759400225298,0.167362,1040.1,1039.4,1.074]
[1759400233308,0.167362,1040.1,1039.5,0.741]
[1759400233603,0.167362,1040.1,1039.6,1.14506773]
[1759400252724,0.167362,1040.1,1039.7,1.122]
[1759400256537,0.167362,1040.1,1039.8,1.06]
[1759400256737,0.167362,1040.1,1039.9,1.17183301]
[1759400279156,1.02930614,1040.1,1039.9,1.17183301]
[1759400280055,0.167362,1040.1,1039.9,1.17183301]
[1759400282260,1.02930614,1040.1,1039.9,1.17183301]
[1759400283655,0.86194414,1040.0,1039.9,1.17183301]
[1759400284558,0.167362,1040.1,1039.9,1.17183301]
[1759400286263,0.86392701,1040.0,1039.9,1.17183301]
[1759400286967,0.167362,1040.1,1039.9,1.17183301]
[1759400287361,0.86379308,1040.0,1039.9,1.17183301]
[1759400287563,0.167362,1040.1,1039.9,1.17183301]
[1759400288067,1.46319528,1040.1,1039.9,1.17183301]
[1759400288565,1.29583328,1040.0,1039.9,1.17183301]
[1759400288765,1.46319528,1040.1,1039.9,1.17183301]
[1759400288961,1.29583328,1040.0,1039.9,1.17183301]
[1759400289362,1.46319528,1040.1,1039.9,1.17183301]
[1759400289763,0.86356146,1040.0,1039.9,1.17183301]
[1759400295570,1.03092346,1040.1,1039.9,1.17183301]
[1759400295868,0.86356146,1040.0,1039.9,1.17183301]
[1759400296269,1.03092346,1040.1,1039.9,1.17183301]
[1759400298070,1.03092346,1040.1,1039.8,1.063]
[1759400302169,0.86356146,1040.0,1039.8,1.063]
[1759400302370,1.03092346,1040.1,1039.8,1.063]
[1759400304575,0.86356146,1040.0,1039.8,1.063]
[1759400306376,0.86356146,1039.9,1039.8,1.063]
[1759400307080,1.29583328,1040.0,1039.8,1.063]
[1759400308081,0.86228067,1039.9,1039.8,1.063]
[1759400309382,0.86221244,1039.9,1039.8,1.063]
[1759400309580,1.46319528,1040.1,1039.8,1.063]
[1759400309783,0.86221244,1039.9,1039.8,1.063]
[1759400314583,0.86221244,1040.0,1039.8,1.063]
[1759400316288,0.86221244,1040.0,1039.6,2.29820232]
[1759400318285,0.86221244,1039.9,1039.6,2.29820232]
[1759400318487,0.86221244,1040.0,1039.6,2.29820232]
[1759400318884,0.86221244,1039.9,1039.6,2.29820232]
[1759400319488,0.167362,1040.1,1039.6,2.29820232]
[1759400320187,0.167362,1040.1,1039.6,1.17020232]
[1759400322093,1.02957444,1040.1,1039.6,1.17020232]
[1759400322292,0.86221244,1040.0,1039.6,1.17020232]
[1759400322488,0.86221244,1039.9,1039.6,1.17020232]
[1759400323093,0.86221244,1040.0,1039.6,1.17020232]
[1759400324899,0.86221244,1039.9,1039.6,1.17020232]
[1759400325796,0.86221244,1039.8,1039.6,1.17020232]
[1759400329702,0.86221244,1039.7,1039.6,1.17020232]
[1759400333408,1.40344492,1039.7,1039.6,1.17020232]
[1759400334004,0.54123248,1039.7,1039.6,1.17020232]
[1759400334304,1.40344492,1039.7,1039.6,1.17020232]
[1759400334602,0.54123248,1039.7,1039.6,1.17020232]
[1759400366935,0.54123248,1039.7,1039.6,1.13585286]
[1759400370738,0.54123248,1039.7,1039.6,1.14363881]
[1759400377944,0.54123248,1039.7,1039.6,1.17646826]
[1759400381449,0.54123248,1039.7,1039.6,1.17616709]
[1759400387547,0.54123248,1039.7,1039.6,1.14865056]
[1759400391053,0.54123248,1039.7,1039.6,1.15276563]
[1759400416767,1.40344492,1039.7,1039.6,1.14946118]
[1759400417571,0.86221244,1039.7,1039.6,1.14946118]
[1759400419972,0.86221244,1039.8,1039.6,1.14946118]
[1759400420678,1.40694355,1039.7,1039.6,1.14946118]
[1759400421385,0.54473111,1039.7,1039.6,1.14946118]
[1759400429986,0.54473111,1039.7,1039.5,1.213]
[1759400430285,0.54473111,1039.6,1039.5,1.213]
[1759400430485,0.54473111,1039.6,1039.5,2.38958603]
[1759400445294,0.54473111,1039.6,1039.5,1.213]
[1759400453397,0.54473111,1039.6,1039.4,0.808]
[1759400453596,0.54473111,1039.5,1039.4,0.808]
[1759400459603,0.54473111,1039.5,1039.3,0.942]
[1759400459801,0.54473111,1039.4,1039.3,0.942]
[1759400481919,1.40694355,1039.4,1039.3,0.942]
[1759400482118,1.40694355,1039.4,1039.1,1.165]
[1759400482318,1.40694355,1039.3,1039.1,1.165]
[1759400482516,0.54473111,1039.2,1039.1,1.165]
[1759400489935,0.53510701,1039.2,1039.1,1.165]
[1759400505147,0.86221244,1039.9,1039.1,1.165]
[1759400505346,0.53589845,1039.8,1039.1,1.165]
[1759400505546,0.53589845,1039.7,1039.1,1.165]
[1759400505849,0.53589845,1039.6,1039.1,1.165]
[1759400506046,0.53589845,1039.5,1039.1,1.165]
[1759400506250,0.53589845,1039.4,1039.1,1.165]
[1759400506550,0.53589845,1039.3,1039.1,1.165]
[1759400506847,0.53589845,1039.2,1039.1,1.165]
[1759400507556,0.86221244,1039.9,1039.1,1.165]
[1759400507746,0.53596731,1039.8,1039.1,1.165]
[1759400507947,0.53596731,1039.7,1039.1,1.165]
[1759400508147,0.53596731,1039.6,1039.1,1.165]
[1759400508348,0.53596731,1039.5,1039.1,1.165]
[1759400508547,0.53596731,1039.4,1039.1,1.165]
[1759400508745,0.86221244,1040.0,1039.1,1.165]
[1759400508950,0.5358197,1039.9,1039.1,1.165]
[1759400509249,0.5358197,1039.8,1039.1,1.165]
[1759400509446,0.5358197,1039.7,1039.1,1.165]
[1759400509646,0.5358197,1039.6,1039.1,1.165]
[1759400509851,0.5358197,1039.5,1039.1,1.165]
[1759400510151,0.16737166,1040.1,1039.1,1.165]
[1759400510452,0.53548803,1040.0,1039.1,1.165]
[1759400510652,0.53548803,1039.9,1039.1,1.165]
[1759400510852,0.53548803,1039.8,1039.1,1.165]
[1759400511150,0.53548803,1039.7,1038.5,0.16742884]
[1759400511449,0.53548803,1039.6,1038.5,0.16742884]
[1759400511652,0.16737166,1040.1,1038.5,0.16742884]
[1759400511852,0.53529768,1040.0,1038.5,0.16742884]
[1759400512050,0.53529768,1039.9,1038.5,0.16742884]
[1759400512249,0.53529768,1039.8,1038.5,0.16742884]
[1759400512452,0.53529768,1039.7,1038.5,0.16742884]
[1759400512649,0.53529768,1039.6,1038.5,0.16742884]
[1759400512952,0.16737166,1040.1,1038.5,0.16742884]
[1759400513252,0.53513425,1040.0,1038.5,0.16742884]
[1759400513449,0.53513425,1039.9,1038.5,0.16742884]
[1759400513651,0.53513425,1039.8,1038.5,0.16742884]
[1759400513849,0.53513425,1039.7,1038.5,0.16742884]
[1759400514147,0.53513425,1039.6,1038.5,0.16742884]
[1759400514347,0.16737166,1040.1,1038.5,0.16742884]
[1759400514548,0.53481557,1040.0,1038.5,0.16742884]
[1759400514748,0.53481557,1039.9,1038.6,0.743]
[1759400515048,0.53481557,1039.8,1038.6,0.743]
[1759400515253,0.53481557,1039.7,1038.6,0.743]
[1759400515449,0.53481557,1039.6,1038.6,0.743]
[1759400515646,0.16737166,1040.1,1038.6,0.743]
[1759400515852,0.53467545,1040.0,1038.6,0.743]
[1759400516049,0.53467545,1039.9,1038.6,0.743]
[1759400516348,0.53467545,1039.8,1038.6,0.743]
[1759400516553,0.53467545,1039.7,1038.6,0.743]
[1759400516751,0.16737166,1040.1,1038.6,0.743]
[1759400516952,0.53452475,1040.0,1038.7,1.062]
[1759400517151,0.53452475,1039.9,1038.7,1.062]
[1759400517351,0.53452475,1039.8,1038.7,1.062]
[1759400517550,0.53452475,1039.7,1038.7,1.062]
[1759400517850,25.88740526,1041.2,1038.7,1.062]
[1759400517851,0.86221244,1041.0,1038.7,1.062]
[1759400518054,0.16739823,1040.3,1038.7,1.062]
[1759400518254,0.53424856,1040.2,1038.7,1.062]
[1759400518450,0.53424856,1040.1,1038.7,1.062]
[1759400518654,0.53424856,1040.0,1038.7,1.062]
[1759400518955,0.16734993,1040.3,1038.7,1.062]
[1759400519155,0.53390869,1040.2,1038.7,1.062]
[1759400519455,0.53390869,1040.1,1038.7,1.062]
[1759400519652,0.53390869,1040.0,1038.7,1.062]
[1759400519955,0.16734993,1040.3,1038.7,1.062]
[1759400520252,0.53362043,1040.2,1038.7,1.062]
[1759400520456,0.53362043,1040.1,1038.7,1.062]
[1759400520652,0.53362043,1040.0,1038.7,1.062]
[1759400520855,0.16734993,1040.3,1038.7,1.062]
[1759400521056,0.53361923,1040.2,1038.7,1.062]
[1759400521253,0.53361923,1040.1,1038.7,1.062]
[1759400521456,0.53361923,1040.0,1038.7,1.062]
[1759400521657,0.16734993,1040.3,1038.7,1.062]
[1759400521952,0.5333668,1040.2,1038.7,1.062]
[1759400522257,0.5333668,1040.1,1038.7,1.062]
[1759400522557,0.5333668,1040.0,1038.7,1.062]
[1759400522857,0.16734993,1040.3,1038.7,1.062]
[1759400523057,0.53313728,1040.2,1038.7,1.062]
[1759400523354,0.53313728,1040.1,1038.7,1.062]
[1759400523557,0.53313728,1040.0,1038.7,1.062]
[1759400523752,0.16732982,1040.5,1038.7,1.062]
[1759400523956,0.53293464,1040.4,1038.7,1.062]
[1759400524156,0.53293464,1040.3,1038.7,1.062]
[1759400524357,0.53293464,1040.2,1038.7,1.062]
[1759400524555,0.53293464,1040.1,1038.7,1.062]
[1759400524754,0.53293464,1040.0,1038.7,1.062]
[1759400524959,0.16732982,1040.5,1038.7,1.062]
[1759400525156,0.53276291,1040.4,1038.7,1.062]
[1759400525456,0.53276291,1040.3,1038.7,1.062]
[1759400525661,0.53276291,1040.2,1038.7,1.062]
[1759400525862,0.16733464,1040.8,1038.7,1.062]
[1759400526162,0.53247418,1040.7,1038.7,1.062]
[1759400526362,0.53247418,1040.6,1038.7,1.062]
[1759400526558,0.53247418,1040.5,1038.7,1.062]
[1759400526762,0.53247418,1040.4,1038.7,1.062]
[1759400526958,0.53247418,1040.3,1038.7,1.062]
[1759400527258,0.53247418,1040.2,1038.7,1.062]
[1759400527463,0.53247418,1040.1,1038.7,1.062]
[1759400527663,0.86221244,1040.7,1038.7,1.062]
[1759400527861,0.53217761,1040.6,1038.7,1.062]
[1759400528062,0.53217761,1040.5,1038.7,1.062]
[1759400528362,0.53217761,1040.4,1038.7,1.062]
[1759400528562,0.53217761,1040.3,1038.7,1.062]
[1759400528765,0.53217761,1040.2,1038.7,1.062]
[1759400528965,0.53217761,1040.1,1038.7,1.062]
[1759400529165,0.86221244,1040.7,1038.7,1.062]
[1759400529462,0.53199312,1040.6,1038.7,1.062]
[1759400529660,0.53199312,1040.5,1038.7,1.062]
[1759400529866,0.53199312,1040.4,1038.7,1.062]
[1759400530162,0.53199312,1040.3,1038.7,1.062]
[1759400530466,0.53199312,1040.2,1038.7,1.062]
[1759400530663,0.53199312,1040.1,1038.7,1.062]
[1759400530967,0.86221244,1040.7,1038.7,1.062]
[1759400531163,0.53193018,1040.6,1038.7,1.062]
[1759400531365,0.53193018,1040.5,1038.7,1.062]
[1759400531561,0.53193018,1040.4,1038.7,1.062]
[1759400531766,0.53193018,1040.3,1038.7,1.062]
[1759400531964,0.53193018,1040.2,1038.7,1.062]
[1759400532167,0.53193018,1040.1,1038.7,1.062]
[1759400532367,0.86221244,1040.7,1038.7,1.062]
[1759400532567,0.53182579,1040.6,1038.7,1.062]
[1759400532769,0.53182579,1040.5,1038.7,1.062]
[1759400532968,0.53182579,1040.4,1038.7,1.062]
[1759400533168,0.53182579,1040.3,1038.7,1.062]
[1759400533369,0.53182579,1040.2,1038.7,1.062]
[1759400533571,0.53182579,1040.1,1038.7,1.062]
[1759400533867,0.86221244,1040.7,1038.7,1.062]
[1759400534067,0.53179229,1040.6,1038.7,1.062]
[1759400534272,0.53179229,1040.5,1038.7,1.062]
[1759400534468,0.53179229,1040.4,1038.7,1.062]
[1759400534672,0.53179229,1040.3,1038.7,1.062]
[1759400534873,0.53179229,1040.2,1038.7,1.062]
[1759400535075,0.53179229,1040.1,1038.7,1.062]
[1759400535269,0.53179229,1040.0,1038.7,1.062]
[1759400535470,0.86221244,1040.6,1038.7,1.062]
[1759400535774,0.5454963,1040.5,1038.7,1.062]
[1759400535976,0.5454963,1040.4,1038.7,1.062]
[1759400536271,0.5454963,1040.3,1038.7,1.062]
[1759400536576,0.5454963,1040.2,1038.7,1.062]
[1759400536775,0.5454963,1040.1,1038.7,1.062]
[1759400536976,0.5454963,1040.0,1038.7,1.062]
[1759400537177,0.86221244,1040.7,1038.7,1.062]
[1759400537377,0.54551368,1040.6,1038.7,1.062]
[1759400537574,0.54551368,1040.5,1038.7,1.062]
[1759400537777,0.54551368,1040.4,1038.7,1.062]
[1759400538074,0.54551368,1040.3,1038.7,1.062]
[1759400538279,0.54551368,1040.2,1038.7,1.062]
[1759400538475,0.54551368,1040.1,1038.7,1.062]
[1759400538678,0.54551368,1040.0,1038.7,1.062]
[1759400538876,0.54551368,1039.9,1038.7,1.062]
[1759400539173,0.54551368,1039.8,1038.7,1.062]
[1759400539377,0.54551368,1039.7,1038.7,1.062]
[1759400539575,0.54551368,1039.6,1038.7,1.062]
[1759400539776,0.86221244,1040.4,1038.7,1.062]
[1759400539977,0.5458155,1040.3,1038.7,1.062]
[1759400540174,0.5458155,1040.2,1038.7,1.062]
[1759400540376,0.5458155,1040.1,1038.7,1.062]
[1759400540574,0.5458155,1040.0,1038.7,1.062]
[1759400540876,0.5458155,1039.9,1038.7,1.062]
[1759400541073,0.5458155,1039.8,1038.7,1.062]
[1759400541274,0.86221244,1040.4,1038.7,1.062]
[1759400541275,0.5458155,1039.7,1038.7,1.062]
[1759400541478,0.5458155,1039.6,1038.7,1.062]
[1759400541679,0.86221244,1040.4,1038.7,1.062]
[1759400541979,0.5459761,1040.3,1038.7,1.062]
[1759400542179,0.5459761,1040.2,1038.7,1.062]
[1759400542378,0.5459761,1040.1,1038.7,1.062]
[1759400542576,0.5459761,1040.0,1038.7,1.062]
[1759400542776,0.5459761,1039.9,1038.7,1.062]
[1759400542980,0.5459761,1039.8,1038.7,1.062]
[1759400543282,0.5459761,1039.7,1038.7,1.062]
[1759400543483,0.86221244,1040.2,1038.7,1.062]
[1759400543781,0.54630856,1040.1,1038.7,1.062]
[1759400544078,0.54630856,1040.0,1038.7,1.062]
[1759400544281,0.54630856,1039.9,1038.8,1.17]
[1759400544481,0.54630856,1039.8,1038.8,1.17]
[1759400544678,0.86221244,1040.3,1038.8,1.17]
[1759400544882,0.54643015,1040.2,1038.8,1.17]
[1759400545181,0.54643015,1040.1,1038.8,1.17]
[1759400545381,0.54643015,1040.0,1038.8,1.17]
[1759400545578,0.54643015,1039.9,1038.8,1.17]
[1759400545780,0.54643015,1039.8,1038.8,1.17]
[1759400545977,0.54643015,1039.7,1038.8,1.17]
[1759400546277,0.86221244,1040.3,1038.8,1.17]
[1759400546478,0.54677665,1040.2,1038.8,1.17]
[1759400546777,0.54677665,1040.1,1038.8,1.17]
[1759400546980,0.54677665,1040.0,1038.8,1.17]
[1759400547276,0.54677665,1039.9,1038.8,1.17]
[1759400547575,0.54677665,1039.8,1038.8,1.17]
[1759400547778,0.54677665,1039.7,1038.8,1.17]
[1759400547981,0.86221244,1040.3,1038.8,1.17]
[1759400548181,0.5469208,1040.2,1038.8,1.17]
[1759400548381,0.5469208,1040.1,1038.8,1.17]
[1759400548681,0.5469208,1040.0,1038.8,1.17]
[1759400548880,0.5469208,1039.9,1038.8,1.17]
[1759400549079,0.5469208,1039.8,1038.8,1.17]
[1759400549278,0.5469208,1039.7,1038.8,1.17]
[1759400549482,0.86221244,1040.3,1038.8,1.17]
[1759400549778,0.54719488,1040.2,1038.8,1.17]
[1759400549977,0.54719488,1040.1,1038.8,1.17]
[1759400550177,0.54719488,1040.0,1038.8,1.17]
[1759400550481,0.54719488,1039.9,1038.8,1.17]
[1759400550778,0.54719488,1039.8,1038.8,1.17]
[1759400550979,0.86221244,1040.4,1038.8,1.17]
[1759400551279,0.54723465,1040.3,1038.9,1.02]
[1759400551478,0.54723465,1040.2,1038.9,1.02]
[1759400551684,0.54723465,1040.1,1038.9,1.02]
[1759400551884,0.54723465,1040.0,1038.9,1.02]
[1759400552080,0.54723465,1039.9,1038.9,1.02]
[1759400552380,0.54723465,1039.8,1038.9,1.02]
[1759400552583,0.86221244,1040.4,1038.9,1.02]
[1759400552780,0.54737125,1040.3,1038.9,1.02]
[1759400553081,0.54737125,1040.2,1038.9,1.02]
[1759400553385,0.54737125,1040.1,1038.9,1.02]
[1759400553580,0.54737125,1040.0,1038.9,1.02]
[1759400553785,0.86221244,1040.5,1038.9,1.02]
[1759400554081,0.54729221,1040.4,1038.9,1.02]
[1759400554281,0.54729221,1040.3,1038.9,1.02]
[1759400554481,0.54729221,1040.2,1038.9,1.02]
[1759400554680,0.54729221,1040.1,1038.9,1.02]
[1759400554886,0.54729221,1040.0,1038.9,1.02]
[1759400555181,0.86221244,1040.6,1038.9,1.02]
[1759400555380,0.5473533,1040.5,1038.9,1.02]
[1759400555579,0.86221244,1040.6,1038.9,1.02]
[1759400555580,0.5473533,1040.4,1038.9,1.02]
[1759400555786,0.5473533,1040.3,1038.9,1.02]
[1759400555980,0.5473533,1040.2,1038.9,1.02]
[1759400556184,0.5473533,1040.1,1038.9,1.02]
[1759400556385,0.5473533,1040.0,1038.9,1.02]
[1759400556684,0.86221244,1040.6,1038.9,1.02]
[1759400556891,0.5473998,1040.5,1038.9,1.02]
[1759400557182,0.5473998,1040.4,1038.9,1.02]
[1759400557384,0.5473998,1040.3,1038.9,1.02]
[1759400557581,0.5473998,1040.2,1038.9,1.02]
[1759400557781,0.5473998,1040.1,1038.9,1.02]
[1759400557983,0.5473998,1040.0,1038.9,1.02]
[1759400558181,0.86221244,1040.7,1038.9,1.02]
[1759400558386,0.5474923,1040.6,1038.9,1.02]
[1759400558681,0.5474923,1040.5,1038.9,1.02]
[1759400558882,0.5474923,1040.4,1038.9,1.02]
[1759400559082,0.5474923,1040.3,1038.9,1.02]
[1759400559285,0.16733464,1040.8,1038.9,1.02]
[1759400559484,0.54735295,1040.7,1038.9,1.02]
[1759400559685,0.54735295,1040.6,1038.9,1.02]
[1759400559885,0.54735295,1040.5,1038.9,1.02]
[1759400560085,0.54735295,1040.4,1038.9,1.02]
[1759400560288,0.54735295,1040.3,1038.9,1.02]
[1759400560486,0.16733464,1040.8,1038.9,1.02]
[1759400560690,0.54726437,1040.7,1038.9,1.02]
[1759400560992,0.54726437,1040.6,1038.9,1.02]
[1759400561287,0.54726437,1040.5,1038.9,1.02]
[1759400561492,0.54726437,1040.4,1038.9,2.31346285]
[1759400561792,0.16733464,1040.8,1038.9,2.31346285]
[1759400561993,0.5471692,1040.7,1038.9,2.31346285]
[1759400562187,0.5471692,1040.6,1038.9,2.31346285]
[1759400562390,0.5471692,1040.5,1038.9,2.31346285]
[1759400562592,0.5471692,1040.4,1038.9,2.31346285]
[1759400562789,0.16733464,1040.8,1038.9,2.31346285]
[1759400562990,0.54709562,1040.7,1038.9,2.31346285]
[1759400563292,0.54709562,1040.6,1038.9,2.31346285]
[1759400563490,0.54709562,1040.5,1038.9,2.31346285]
[1759400563690,0.54709562,1040.4,1038.9,2.31346285]
[1759400563993,0.16733464,1040.8,1038.9,2.31346285]
[1759400564190,0.54704938,1040.7,1038.9,2.31346285]
[1759400564391,0.54704938,1040.6,1038.9,2.31346285]
[1759400564591,0.54704938,1040.5,1038.9,2.31346285]
[1759400564794,0.16733464,1040.8,1038.9,1.02]
[1759400564994,0.54222935,1040.7,1038.9,1.02]
[1759400565294,0.54222935,1040.6,1038.9,1.02]
[1759400565492,0.54222935,1040.5,1038.9,1.02]
[1759400565694,0.16733464,1040.8,1038.9,1.02]
[1759400565990,0.54222968,1040.7,1038.9,1.02]
[1759400566188,0.54222968,1040.6,1038.9,1.02]
[1759400566394,0.54222968,1040.5,1038.9,1.02]
[1759400566593,0.16733464,1040.8,1038.9,1.02]
[1759400566889,0.54226041,1040.7,1038.9,1.02]
[1759400567093,0.16733464,1040.8,1038.9,1.02]
[1759400567094,0.54226041,1040.6,1038.9,1.02]
[1759400567294,0.54226041,1040.5,1038.9,1.02]
[1759400567492,0.16733464,1040.8,1038.9,1.02]
[1759400567695,0.54230516,1040.7,1038.9,1.02]
[1759400567995,0.54230516,1040.6,1038.9,1.02]
[1759400568194,0.54230516,1040.5,1038.9,1.02]
[1759400568395,1.0294956,1041.1,1038.9,1.02]
[1759400568592,0.54225205,1041.0,1038.9,1.02]
[1759400568896,0.54225205,1040.9,1038.9,2.31346285]
[1759400569094,0.54225205,1040.8,1038.9,2.31346285]
[1759400569292,0.54225205,1040.7,1039.0,1.29346285]
[1759400569495,0.54225205,1040.6,1039.1,1.29346285]
[1759400569693,0.16728316,1041.1,1039.1,1.29346285]
[1759400569897,0.5421153,1041.0,1039.1,1.29346285]
[1759400570096,0.5421153,1040.9,1039.2,0.917]
[1759400570298,0.5421153,1040.8,1039.2,0.917]
[1759400570599,0.5421153,1040.7,1039.2,0.917]
[1759400570797,0.5421153,1040.6,1039.2,0.917]
[1759400571000,0.16728316,1041.1,1039.2,0.917]
[1759400571201,0.54197845,1041.0,1039.2,0.917]
[1759400571500,0.54197845,1040.9,1039.2,0.917]
[1759400571796,0.54197845,1040.8,1039.2,0.917]
[1759400571996,0.54197845,1040.7,1039.2,0.917]
[1759400572198,0.16728316,1041.1,1039.2,0.917]
[1759400572403,0.54165878,1041.0,1039.2,0.917]
[1759400572600,0.54165878,1040.9,1039.2,0.917]
[1759400572799,0.54165878,1040.8,1039.2,0.917]
[1759400572998,0.54165878,1040.7,1039.2,0.917]
[1759400573297,0.16728316,1041.1,1039.2,0.917]
[1759400573499,0.54152648,1041.0,1039.2,0.917]
[1759400573799,0.54152648,1040.9,1039.2,0.917]
[1759400574098,0.54152648,1040.8,1039.2,0.917]
[1759400574299,0.54152648,1040.7,1039.2,0.917]
[1759400574503,0.16728316,1041.1,1039.2,0.917]
[1759400574699,0.54140411,1041.0,1039.2,0.917]
[1759400574898,0.54140411,1040.9,1039.2,0.917]
[1759400575102,0.54140411,1040.8,1039.2,0.917]
[1759400575403,0.16724698,1041.3,1039.2,0.917]
[1759400575604,0.54126886,1041.2,1039.2,0.917]
[1759400575800,0.54126886,1041.1,1039.2,0.917]
[1759400576000,0.54126886,1041.0,1039.2,0.917]
[1759400576200,0.54126886,1040.9,1039.3,0.76]
[1759400576399,0.54126886,1040.8,1039.3,0.76]
[1759400576603,0.16724698,1041.3,1039.3,0.76]
[1759400576804,0.54116838,1041.2,1039.3,0.76]
[1759400577004,0.54116838,1041.1,1039.3,0.76]
[1759400577203,0.54116838,1041.0,1039.3,0.76]
[1759400577400,0.54116838,1040.9,1039.3,0.76]
[1759400577604,0.54116838,1040.8,1039.3,0.76]
[1759400577802,0.16724698,1041.3,1039.3,0.76]
[1759400578006,0.5410146,1041.2,1039.3,0.76]
[1759400578307,0.5410146,1041.1,1039.3,0.76]
[1759400578505,0.16724698,1041.3,1039.3,0.76]
[1759400578506,0.5410146,1041.0,1039.3,0.76]
[1759400578706,0.5410146,1040.9,1039.3,0.76]
[1759400578906,0.16724698,1041.3,1039.3,0.76]
[1759400579206,0.54079557,1041.2,1039.3,0.76]
[1759400579408,0.54079557,1041.1,1039.3,0.76]
[1759400579604,0.54079557,1041.0,1039.3,0.76]
[1759400579807,0.54079557,1040.9,1039.3,0.76]
[1759400580004,0.16724698,1041.3,1039.3,0.76]
[1759400580305,0.54058529,1041.2,1039.3,0.76]
[1759400580504,0.54058529,1041.1,1039.3,0.76]
[1759400580707,0.54058529,1041.0,1039.3,0.76]
[1759400580904,0.54058529,1040.9,1039.3,0.76]
[1759400581108,0.16724698,1041.3,1039.3,0.76]
[1759400581308,0.54043238,1041.2,1039.3,0.76]
[1759400581603,0.54043238,1041.1,1039.3,0.76]
[1759400581806,0.54043238,1041.0,1039.3,0.76]
[1759400582006,0.16724698,1041.3,1039.3,0.76]
[1759400582205,0.54038239,1041.2,1039.3,0.76]
[1759400582407,0.54038239,1041.1,1039.3,0.76]
[1759400582708,0.54038239,1041.0,1039.3,0.76]
[1759400582912,0.16724698,1041.3,1039.3,0.76]
[1759400583111,0.54019502,1041.2,1039.3,0.76]
[1759400583311,0.54019502,1041.1,1039.3,0.76]
[1759400583607,0.54019502,1041.0,1039.3,0.76]
[1759400583813,0.16724698,1041.3,1039.3,0.76]
[1759400584110,0.54002161,1041.2,1039.3,0.76]
[1759400584310,0.54002161,1041.1,1039.3,0.76]
[1759400584510,0.54002161,1041.0,1039.3,0.76]
[1759400584811,0.16724698,1041.3,1039.3,0.76]
[1759400585106,0.53986266,1041.2,1039.3,0.76]
[1759400585310,0.53986266,1041.1,1039.3,0.76]
[1759400585507,0.53986266,1041.0,1039.3,0.76]
[1759400585707,0.53972726,1040.9,1039.3,0.76]
[1759400585907,0.16724698,1041.3,1039.3,0.76]
[1759400585908,0.53972726,1040.8,1039.3,0.76]
[1759400586106,0.53972726,1040.7,1039.3,0.76]
[1759400586310,0.53972726,1040.6,1039.3,0.76]
[1759400586509,0.86221244,1041.2,1039.3,0.76]
[1759400586810,0.53986156,1041.1,1039.3,0.76]
[1759400587111,0.53986156,1041.0,1039.3,0.76]
[1759400587309,0.53986156,1040.9,1039.3,0.76]
[1759400587508,0.53986156,1040.8,1039.3,0.76]
[1759400587707,0.53986156,1040.7,1039.3,0.76]
[1759400587911,0.53986156,1040.6,1039.3,0.76]
[1759400588111,0.86221244,1041.2,1039.3,0.76]
[1759400588413,1.40205451,1041.1,1039.3,0.76]
[1759400588611,0.53984207,1041.0,1039.3,0.76]
[1759400588812,0.53984207,1040.9,1039.3,0.76]
[1759400589007,0.53984207,1040.8,1039.3,0.76]
[1759400589207,0.53984207,1040.7,1039.3,0.76]
[1759400589414,0.53984207,1040.6,1039.3,0.76]
[1759400589613,0.86221244,1041.2,1039.3,0.76]
[1759400589813,0.53983953,1041.1,1039.3,0.76]
[1759400590008,0.53983953,1041.0,1039.3,0.76]
[1759400590212,0.86221244,1041.2,1039.3,0.76]
[1759400590213,0.53983953,1040.9,1039.3,0.76]
[1759400590510,0.53983953,1040.8,1039.3,0.76]
[1759400590711,0.53983953,1040.7,1039.3,0.76]
[1759400590914,0.53983953,1040.6,1039.3,0.76]
[1759400591213,0.86221244,1041.2,1039.3,0.76]
[1759400591510,0.53984655,1041.1,1039.3,0.76]
[1759400591714,0.53984655,1041.0,1039.3,0.76]
[1759400591910,0.53984655,1040.9,1039.3,0.76]
[1759400592114,0.53984655,1040.8,1039.3,0.76]
[1759400592314,0.53984655,1040.7,1039.3,0.76]
[1759400592614,0.53984655,1040.6,1039.3,0.76]
[1759400592910,1.02945942,1041.3,1039.3,0.76]
[1759400593111,0.53983327,1041.2,1039.3,0.76]
[1759400593415,0.53983327,1041.1,1039.3,0.76]
[1759400593710,0.53983327,1041.0,1039.3,0.76]
[1759400593909,0.53983327,1040.9,1039.3,0.76]
[1759400594109,0.53983327,1040.8,1039.3,0.76]
[1759400594311,0.53983327,1040.7,1039.3,0.76]
[1759400594511,1.02945942,1041.3,1039.3,0.76]
[1759400594512,0.53983327,1040.6,1039.3,0.76]
[1759400594814,1.02945942,1041.3,1039.3,0.76]
[1759400595014,0.53853951,1041.2,1039.3,0.76]
[1759400595211,0.53853951,1041.1,1039.3,0.76]
[1759400595415,0.53853951,1041.0,1039.3,0.76]
[1759400595716,0.53853951,1040.9,1039.3,0.76]
[1759400596011,1.02945942,1041.3,1039.3,0.76]
[1759400596012,0.53853951,1040.8,1039.3,0.76]
[1759400596211,0.53853951,1040.7,1039.3,0.76]
[1759400596412,0.53853951,1040.6,1039.3,0.76]
[1759400596617,1.02945942,1041.3,1039.3,0.76]
[1759400596815,0.53856406,1041.2,1039.3,0.76]
[1759400597015,0.53856406,1041.1,1039.3,0.76]
[1759400597214,0.53856406,1041.0,1039.3,0.76]
[1759400597519,0.53856406,1040.9,1039.3,0.76]
[1759400597719,0.53856406,1040.8,1039.3,0.76]
[1759400598018,0.16724698,1041.3,1039.3,0.76]
[1759400598212,0.53850204,1041.2,1039.3,0.76]
[1759400598412,0.53850204,1041.1,1039.3,0.76]
[1759400598615,0.53850204,1041.0,1039.3,0.76]